[Event "Early-Titled-Tuesday-Blitz-October-10-2023"]
[Site "Chess.com"]
[Date "2023.10.10"]
[Round "1"]
[White "Vaathi_Coming"]
[Black "Triumphmate"]
[Result "1-0"]
[WhiteElo "2881"]
[BlackElo "2491"]
[TimeControl "180+1"]
[EndTime "8:06:19 PDT"]
[Termination "Vaathi_Coming won by resignation"]

1. b3 {[%clk 0:03:00.4]} 1... d5 {[%clk 0:02:54.2]} 2. Bb2 {[%clk 0:03:00.4]}
2... Nc6 {[%clk 0:02:55.1]} 3. Nf3 {[%clk 0:03:00.4]} 3... Bg4 {[%clk
0:02:52.9]} 4. e3 {[%clk 0:02:55.8]} 4... e5 {[%clk 0:02:50.4]} 5. h3 {[%clk
0:02:56]} 5... Bxf3 {[%clk 0:02:46.9]} 6. Qxf3 {[%clk 0:02:56.9]} 6... Nf6
{[%clk 0:02:46.8]} 7. Bb5 {[%clk 0:02:56.4]} 7... Bd6 {[%clk 0:02:46.9]} 8. Nc3
{[%clk 0:02:56.4]} 8... e4 {[%clk 0:02:45.3]} 9. Qe2 {[%clk 0:02:56.4]} 9... a6
{[%clk 0:02:44.8]} 10. Bxc6+ {[%clk 0:02:55.9]} 10... bxc6 {[%clk 0:02:45.7]}
11. O-O-O {[%clk 0:02:56.3]} 11... Qe7 {[%clk 0:02:43.6]} 12. f3 {[%clk
0:02:47.5]} 12... exf3 {[%clk 0:02:36.8]} 13. gxf3 {[%clk 0:02:44]} 13... Ba3
{[%clk 0:02:37.7]} 14. Rhg1 {[%clk 0:02:43.5]} 14... Bxb2+ {[%clk 0:02:36.9]}
15. Kxb2 {[%clk 0:02:44.4]} 15... g6 {[%clk 0:02:36.6]} 16. d4 {[%clk
0:02:23.2]} 16... a5 {[%clk 0:02:27.9]} 17. a4 {[%clk 0:02:09.6]} 17... O-O
{[%clk 0:02:26.2]} 18. e4 {[%clk 0:02:09.9]} 18... Rfe8 {[%clk 0:01:43.3]} 19.
e5 {[%clk 0:02:08]} 19... Qb4 {[%clk 0:01:43.3]} 20. f4 {[%clk 0:02:03.4]} 20...
Rab8 {[%clk 0:01:36.3]} 21. f5 {[%clk 0:02:00.3]} 21... c5 {[%clk 0:01:23]} 22.
fxg6 {[%clk 0:01:34.7]} 22... hxg6 {[%clk 0:01:18]} 23. Qd3 {[%clk 0:01:15]}
23... c4 {[%clk 0:00:52.3]} 24. Rxg6+ {[%clk 0:01:08.6]} 24... Kf8 {[%clk
0:00:32.3]} 25. Qf5 {[%clk 0:01:08.2]} 25... cxb3 {[%clk 0:00:25.1]} 26. Rxf6
{[%clk 0:01:07.8]} 26... bxc2+ {[%clk 0:00:24.1]} 27. Kxc2 {[%clk 0:01:08.7]}
27... Qb2+ {[%clk 0:00:20]} 28. Kd3 {[%clk 0:01:08.6]} 28... Re7 {[%clk
0:00:19.9]} 29. Rf1 {[%clk 0:01:00.4]} 29... Ke8 {[%clk 0:00:12.7]} 30. Rxf7
{[%clk 0:01:00]} 30... Rxf7 {[%clk 0:00:12.7]} 31. Qxf7+ {[%clk 0:01:00.9]}
31... Kd8 {[%clk 0:00:13.1]} 32. Qxd5+ {[%clk 0:01:00.9]} 1-0

[Event "Early-Titled-Tuesday-Blitz-October-10-2023"]
[Site "Chess.com"]
[Date "2023.10.10"]
[Round "1"]
[White "Marcin"]
[Black "Man-Chuk"]
[Result "1-0"]
[WhiteElo "2455"]
[BlackElo "2735"]
[TimeControl "180+1"]
[EndTime "8:06:19 PDT"]
[Termination "Marcin won on time"]

1. Nf3 {[%clk 0:02:57.3]} 1... d5 {[%clk 0:02:52.6]} 2. e3 {[%clk 0:02:57]} 2...
c5 {[%clk 0:02:49.3]} 3. c4 {[%clk 0:02:57.2]} 3... d4 {[%clk 0:02:45.6]} 4.
exd4 {[%clk 0:02:57.3]} 4... cxd4 {[%clk 0:02:46.5]} 5. d3 {[%clk 0:02:57.5]}
5... Nc6 {[%clk 0:02:45.6]} 6. g3 {[%clk 0:02:57.9]} 6... e5 {[%clk 0:02:40.1]}
7. Bg2 {[%clk 0:02:57.4]} 7... Bd6 {[%clk 0:02:40.4]} 8. O-O {[%clk 0:02:57.6]}
8... a5 {[%clk 0:02:39]} 9. Na3 {[%clk 0:02:52.1]} 9... Nge7 {[%clk 0:02:35.1]}
10. Nb5 {[%clk 0:02:52.7]} 10... O-O {[%clk 0:02:30.3]} 11. Nxd6 {[%clk
0:02:52.9]} 11... Qxd6 {[%clk 0:02:30.5]} 12. Re1 {[%clk 0:02:53]} 12... Ng6
{[%clk 0:02:25]} 13. Ng5 {[%clk 0:02:50.6]} 13... h6 {[%clk 0:02:14.4]} 14. Ne4
{[%clk 0:02:48.2]} 14... Qc7 {[%clk 0:02:11.1]} 15. Qh5 {[%clk 0:02:42]} 15...
Nb4 {[%clk 0:01:23.2]} 16. Bxh6 {[%clk 0:02:34.8]} 16... gxh6 {[%clk 0:01:21.6]}
17. Qxh6 {[%clk 0:02:35.1]} 17... Ra6 {[%clk 0:01:12.4]} 18. a3 {[%clk
0:02:24.8]} 18... Nc2 {[%clk 0:00:47.5]} 19. Ng5 {[%clk 0:02:23.4]} 19... Rd8
{[%clk 0:00:45.3]} 20. Bd5 {[%clk 0:02:01.6]} 20... Rxd5 {[%clk 0:00:41]} 21.
cxd5 {[%clk 0:02:02.5]} 21... Nf8 {[%clk 0:00:37.1]} 22. Ne6 {[%clk 0:01:23.1]}
22... fxe6 {[%clk 0:00:22]} 23. Rac1 {[%clk 0:01:23.1]} 23... exd5 {[%clk
0:00:19.2]} 24. Qg5+ {[%clk 0:01:17.9]} 24... Ng6 {[%clk 0:00:18.2]} 25. Re2
{[%clk 0:01:16.3]} 25... Rc6 {[%clk 0:00:17.4]} 26. Rcxc2 {[%clk 0:01:12.4]}
26... Rxc2 {[%clk 0:00:17.4]} 27. Qxg6+ {[%clk 0:01:12.7]} 27... Kf8 {[%clk
0:00:15.9]} 28. Qf6+ {[%clk 0:01:11.9]} 28... Kg8 {[%clk 0:00:15.3]} 29. Rxe5
{[%clk 0:01:11.8]} 29... Rc1+ {[%clk 0:00:07.6]} 30. Kg2 {[%clk 0:01:11.8]}
30... Qf7 {[%clk 0:00:02.4]} 31. Qd8+ {[%clk 0:00:58.3]} 31... Kh7 {[%clk
0:00:02.2]} 32. Re7 {[%clk 0:00:58.4]} 1-0

[Event "Early-Titled-Tuesday-Blitz-October-10-2023"]
[Site "Chess.com"]
[Date "2023.10.10"]
[Round "1"]
[White "Jojo_898"]
[Black "Karttunen"]
[Result "0-1"]
[WhiteElo "2370"]
[BlackElo "2654"]
[TimeControl "180+1"]
[EndTime "8:06:19 PDT"]
[Termination "Karttunen won by resignation"]

1. e4 {[%clk 0:03:00.9]} 1... d6 {[%clk 0:02:54.1]} 2. d4 {[%clk 0:02:57.7]}
2... Nf6 {[%clk 0:02:54.3]} 3. Nc3 {[%clk 0:02:57.8]} 3... g6 {[%clk 0:02:54.4]}
4. Nf3 {[%clk 0:02:56.9]} 4... Bg7 {[%clk 0:02:54]} 5. Be3 {[%clk 0:02:56.9]}
5... Bg4 {[%clk 0:02:52.2]} 6. Be2 {[%clk 0:02:55.8]} 6... Nc6 {[%clk 0:02:52]}
7. O-O {[%clk 0:02:55.5]} 7... Bxf3 {[%clk 0:02:48.3]} 8. Bxf3 {[%clk
0:02:55.2]} 8... e5 {[%clk 0:02:48.5]} 9. dxe5 {[%clk 0:02:45.6]} 9... Nxe5
{[%clk 0:02:46.3]} 10. Be2 {[%clk 0:02:44.2]} 10... O-O {[%clk 0:02:41.9]} 11.
f4 {[%clk 0:02:40.1]} 11... Nc6 {[%clk 0:02:28]} 12. f5 {[%clk 0:02:31]} 12...
Qe8 {[%clk 0:02:12.1]} 13. Bg5 {[%clk 0:02:20.4]} 13... Nxe4 {[%clk 0:02:00.6]}
14. Nxe4 {[%clk 0:02:19.1]} 14... Qxe4 {[%clk 0:02:00.3]} 15. f6 {[%clk
0:02:19]} 15... Qd4+ {[%clk 0:01:44.6]} 16. Kh1 {[%clk 0:02:17.4]} 16... Qxd1
{[%clk 0:01:41.5]} 17. Raxd1 {[%clk 0:02:14.9]} 17... Bh8 {[%clk 0:01:41.5]} 18.
Bf3 {[%clk 0:02:10]} 18... Rfe8 {[%clk 0:01:41.1]} 19. Bxc6 {[%clk 0:02:08.9]}
19... bxc6 {[%clk 0:01:40.8]} 20. Rfe1 {[%clk 0:02:09.2]} 20... h6 {[%clk
0:01:36]} 21. Bxh6 {[%clk 0:02:02.7]} 21... Bxf6 {[%clk 0:01:35.8]} 22. c3
{[%clk 0:02:03.2]} 22... Rab8 {[%clk 0:01:32.6]} 23. Rxe8+ {[%clk 0:01:58.7]}
23... Rxe8 {[%clk 0:01:32.2]} 24. Kg1 {[%clk 0:01:51.1]} 24... Re2 {[%clk
0:01:31.6]} 25. Rd2 {[%clk 0:01:51.4]} 25... Rxd2 {[%clk 0:01:18.5]} 26. Bxd2
{[%clk 0:01:49.5]} 26... Be5 {[%clk 0:01:17.6]} 27. h3 {[%clk 0:01:46.5]} 27...
f5 {[%clk 0:01:11]} 28. Kf2 {[%clk 0:01:46.4]} 28... Kf7 {[%clk 0:01:10.7]} 29.
Be3 {[%clk 0:01:43.5]} 29... c5 {[%clk 0:01:10.6]} 30. Bg5 {[%clk 0:01:42.7]}
30... Ke6 {[%clk 0:01:09.5]} 31. Ke2 {[%clk 0:01:31.2]} 31... d5 {[%clk
0:01:04.6]} 32. Kd3 {[%clk 0:01:29.3]} 32... c4+ {[%clk 0:00:59.8]} 33. Ke2
{[%clk 0:01:03.4]} 33... c5 {[%clk 0:00:55.9]} 34. Bh6 {[%clk 0:00:59.4]} 34...
d4 {[%clk 0:00:55.4]} 35. Kd2 {[%clk 0:00:59.7]} 35... Kd5 {[%clk 0:00:54.2]}
36. Bf8 {[%clk 0:00:57.3]} 36... Bf4+ {[%clk 0:00:54]} 37. Ke2 {[%clk
0:00:54.2]} 37... Bc1 {[%clk 0:00:52.5]} 38. cxd4 {[%clk 0:00:47]} 38... cxd4
{[%clk 0:00:52.4]} 39. Ba3 {[%clk 0:00:46.5]} 39... c3 {[%clk 0:00:42.6]} 0-1

[Event "Early-Titled-Tuesday-Blitz-October-10-2023"]
[Site "Chess.com"]
[Date "2023.10.10"]
[Round "1"]
[White "HeinichessPY"]
[Black "ilm2034"]
[Result "0-1"]
[WhiteElo "2204"]
[BlackElo "2578"]
[TimeControl "180+1"]
[EndTime "8:06:19 PDT"]
[Termination "ilm2034 won on time"]

1. e4 {[%clk 0:03:00]} 1... g6 {[%clk 0:02:55.9]} 2. Nc3 {[%clk 0:02:59.2]} 2...
Bg7 {[%clk 0:02:56.8]} 3. f4 {[%clk 0:02:59.4]} 3... c5 {[%clk 0:02:56.7]} 4.
Nf3 {[%clk 0:02:59.5]} 4... Nc6 {[%clk 0:02:57.2]} 5. Bc4 {[%clk 0:02:59.7]}
5... d6 {[%clk 0:02:56.6]} 6. O-O {[%clk 0:02:59.6]} 6... e6 {[%clk 0:02:56.1]}
7. d3 {[%clk 0:02:59.3]} 7... Nge7 {[%clk 0:02:56.6]} 8. Qe1 {[%clk 0:02:59.3]}
8... b6 {[%clk 0:02:51.9]} 9. f5 {[%clk 0:02:47.8]} 9... gxf5 {[%clk 0:02:31]}
10. exf5 {[%clk 0:02:20.2]} 10... Nxf5 {[%clk 0:02:27.6]} 11. Ng5 {[%clk
0:02:20.5]} 11... Ncd4 {[%clk 0:02:19.2]} 12. Nce4 {[%clk 0:02:09.1]} 12... d5
{[%clk 0:02:10.4]} 13. c3 {[%clk 0:02:02]} 13... h6 {[%clk 0:02:00.6]} 14. cxd4
{[%clk 0:01:53.6]} 14... hxg5 {[%clk 0:01:58.4]} 15. Bb5+ {[%clk 0:01:53]} 15...
Kf8 {[%clk 0:01:56.5]} 16. Nxg5 {[%clk 0:01:48.2]} 16... Bxd4+ {[%clk
0:01:53.4]} 17. Kh1 {[%clk 0:01:44.3]} 17... Qd6 {[%clk 0:01:45.5]} 18. Bf4
{[%clk 0:01:13]} 18... e5 {[%clk 0:01:44.4]} 19. Bg3 {[%clk 0:01:10.4]} 19... a6
{[%clk 0:01:26.1]} 20. Ba4 {[%clk 0:01:06.2]} 20... Be6 {[%clk 0:01:00.4]} 21.
Bb3 {[%clk 0:01:03.1]} 21... Ke7 {[%clk 0:00:58.1]} 22. Rc1 {[%clk 0:00:38.5]}
22... Rag8 {[%clk 0:00:57.5]} 23. Bh4 {[%clk 0:00:31.3]} 23... Nxh4 {[%clk
0:00:47]} 24. Qxh4 {[%clk 0:00:31.3]} 24... Rxh4 {[%clk 0:00:46.8]} 0-1

[Event "Early-Titled-Tuesday-Blitz-October-10-2023"]
[Site "Chess.com"]
[Date "2023.10.10"]
[Round "1"]
[White "cycygogne"]
[Black "BigAl"]
[Result "0-1"]
[WhiteElo "2243"]
[BlackElo "2587"]
[TimeControl "180+1"]
[EndTime "8:06:21 PDT"]
[Termination "BigAl won by resignation"]

1. e4 {[%clk 0:02:59.5]} 1... c6 {[%clk 0:03:00]} 2. d4 {[%clk 0:02:59.1]} 2...
d5 {[%clk 0:03:00.9]} 3. Nc3 {[%clk 0:02:59.6]} 3... dxe4 {[%clk 0:03:01.6]} 4.
Nxe4 {[%clk 0:03:00.5]} 4... Nf6 {[%clk 0:03:02]} 5. Ng3 {[%clk 0:03:01]} 5...
h5 {[%clk 0:03:02.4]} 6. h4 {[%clk 0:03:00.5]} 6... Bg4 {[%clk 0:03:01.2]} 7.
Be2 {[%clk 0:03:00.5]} 7... c5 {[%clk 0:02:57.7]} 8. Bxg4 {[%clk 0:02:54.9]}
8... Nxg4 {[%clk 0:02:57.4]} 9. Nf3 {[%clk 0:02:52.4]} 9... cxd4 {[%clk
0:02:51]} 10. Qxd4 {[%clk 0:02:51.5]} 10... Nc6 {[%clk 0:02:32.5]} 11. Qa4
{[%clk 0:02:45]} 11... e6 {[%clk 0:02:26.9]} 12. Bf4 {[%clk 0:02:36.4]} 12...
Bc5 {[%clk 0:02:19.7]} 13. O-O {[%clk 0:02:30.1]} 13... Qb6 {[%clk 0:02:20.2]}
14. Ne4 {[%clk 0:02:25]} 14... Be7 {[%clk 0:02:15.1]} 15. Bd6 {[%clk 0:01:51.8]}
15... O-O {[%clk 0:02:08.2]} 16. Rad1 {[%clk 0:01:44.4]} 16... Bxd6 {[%clk
0:01:56.1]} 17. Nxd6 {[%clk 0:01:45.3]} 17... Rad8 {[%clk 0:01:53]} 18. Ng5
{[%clk 0:01:31.4]} 18... Qc7 {[%clk 0:01:45.5]} 19. Qa3 {[%clk 0:01:28.5]} 19...
b5 {[%clk 0:01:33.7]} 20. Qg3 {[%clk 0:01:26.1]} 20... Nce5 {[%clk 0:01:22]} 21.
Nde4 {[%clk 0:00:57.4]} 21... Rxd1 {[%clk 0:01:20]} 22. Rxd1 {[%clk 0:00:53.9]}
22... Qxc2 {[%clk 0:01:20.8]} 23. Rf1 {[%clk 0:00:50.6]} 23... f6 {[%clk
0:01:13.2]} 24. Nxe6 {[%clk 0:00:50.3]} 24... Qxe4 {[%clk 0:01:11.2]} 25. Nxf8
{[%clk 0:00:50.5]} 25... Kxf8 {[%clk 0:01:11.7]} 26. f3 {[%clk 0:00:50.8]} 26...
Qd4+ {[%clk 0:01:01.7]} 27. Kh1 {[%clk 0:00:51]} 27... Ne3 {[%clk 0:01:01.9]}
28. Rc1 {[%clk 0:00:44.5]} 28... Nf5 {[%clk 0:00:55.5]} 29. Rc8+ {[%clk
0:00:39]} 29... Kf7 {[%clk 0:00:56.1]} 30. Rc7+ {[%clk 0:00:39.2]} 30... Kg8
{[%clk 0:00:56.3]} 31. Rc8+ {[%clk 0:00:36]} 31... Kh7 {[%clk 0:00:56.9]} 32.
Qe1 {[%clk 0:00:35.9]} 32... Nd3 {[%clk 0:00:53.5]} 33. Qb1 {[%clk 0:00:31.1]}
33... Nf2+ {[%clk 0:00:50.4]} 34. Kh2 {[%clk 0:00:31.3]} 34... Qxh4+ {[%clk
0:00:48.6]} 35. Kg1 {[%clk 0:00:30.6]} 35... Qh1+ {[%clk 0:00:49.5]} 36. Kxf2
{[%clk 0:00:30.9]} 36... Qxb1 {[%clk 0:00:50.4]} 0-1

[Event "Early-Titled-Tuesday-Blitz-October-10-2023"]
[Site "Chess.com"]
[Date "2023.10.10"]
[Round "1"]
[White "bennyficial"]
[Black "Wizard_97"]
[Result "0-1"]
[WhiteElo "2137"]
[BlackElo "2556"]
[TimeControl "180+1"]
[EndTime "8:06:22 PDT"]
[Termination "Wizard_97 won by resignation"]

1. Nf3 {[%clk 0:02:57.4]} 1... Nf6 {[%clk 0:02:59.5]} 2. c4 {[%clk 0:02:56.9]}
2... e6 {[%clk 0:02:59.4]} 3. b3 {[%clk 0:02:54.4]} 3... b6 {[%clk 0:02:58.4]}
4. Bb2 {[%clk 0:02:54.3]} 4... Bb7 {[%clk 0:02:59.3]} 5. g3 {[%clk 0:02:54.7]}
5... Be7 {[%clk 0:02:58.7]} 6. Bg2 {[%clk 0:02:54.4]} 6... O-O {[%clk
0:02:59.6]} 7. O-O {[%clk 0:02:54.7]} 7... d5 {[%clk 0:03:00.3]} 8. d3 {[%clk
0:02:50.2]} 8... c5 {[%clk 0:02:59.8]} 9. Ne5 {[%clk 0:02:43.2]} 9... Nbd7
{[%clk 0:02:59.2]} 10. f4 {[%clk 0:02:34.8]} 10... Qc7 {[%clk 0:02:52.5]} 11.
Nd2 {[%clk 0:02:28.6]} 11... d4 {[%clk 0:02:48.8]} 12. Nxd7 {[%clk 0:02:16.8]}
12... Qxd7 {[%clk 0:02:42.9]} 13. Bxb7 {[%clk 0:02:11.8]} 13... Qxb7 {[%clk
0:02:43.8]} 14. Qe1 {[%clk 0:02:11.9]} 14... Ng4 {[%clk 0:02:43.8]} 15. Rf3
{[%clk 0:02:05.5]} 15... Bd6 {[%clk 0:02:36.7]} 16. Nf1 {[%clk 0:02:00.4]} 16...
f5 {[%clk 0:02:30.4]} 17. h3 {[%clk 0:01:55.8]} 17... Nf6 {[%clk 0:02:30.9]} 18.
Qf2 {[%clk 0:01:51.4]} 18... g6 {[%clk 0:02:29.7]} 19. Qg2 {[%clk 0:01:49.1]}
19... e5 {[%clk 0:02:29]} 20. fxe5 {[%clk 0:01:34.4]} 20... Bxe5 {[%clk
0:02:29.9]} 21. e3 {[%clk 0:01:29.8]} 21... Rad8 {[%clk 0:02:25.7]} 22. Re1
{[%clk 0:01:24.6]} 22... Rfe8 {[%clk 0:02:19.3]} 23. exd4 {[%clk 0:01:09.4]}
23... Bxd4+ {[%clk 0:02:15.7]} 24. Bxd4 {[%clk 0:01:04.9]} 24... Rxd4 {[%clk
0:02:13.3]} 25. Rxe8+ {[%clk 0:00:58.4]} 25... Nxe8 {[%clk 0:02:14.2]} 26. Re3
{[%clk 0:00:48.3]} 26... Qxg2+ {[%clk 0:02:12.6]} 27. Kxg2 {[%clk 0:00:49.2]}
27... Kf7 {[%clk 0:02:12.3]} 28. Nd2 {[%clk 0:00:46.8]} 28... Rd7 {[%clk
0:02:09.8]} 29. Nf3 {[%clk 0:00:46.3]} 29... Kf8 {[%clk 0:01:59.3]} 30. Ne5
{[%clk 0:00:40.8]} 30... Rd6 {[%clk 0:01:55.7]} 31. Kf3 {[%clk 0:00:38.2]} 31...
Nf6 {[%clk 0:01:54.1]} 32. g4 {[%clk 0:00:32.6]} 32... fxg4+ {[%clk 0:01:53.6]}
33. hxg4 {[%clk 0:00:33.5]} 33... Kg7 {[%clk 0:01:52.9]} 34. Kf4 {[%clk
0:00:30.8]} 34... h6 {[%clk 0:01:52.8]} 35. Re1 {[%clk 0:00:23.4]} 35... Rd4+
{[%clk 0:01:48.6]} 36. Kf3 {[%clk 0:00:18.3]} 36... Nd7 {[%clk 0:01:45]} 37. Nc6
{[%clk 0:00:09.3]} 37... Rxd3+ {[%clk 0:01:43.7]} 38. Ke4 {[%clk 0:00:08.6]}
38... Rd6 {[%clk 0:01:44]} 39. Ne5 {[%clk 0:00:03.3]} 39... Re6 {[%clk
0:01:44.2]} 40. Kd5 {[%clk 0:00:03.8]} 40... Rxe5+ {[%clk 0:01:44.7]} 41. Rxe5
{[%clk 0:00:04.3]} 41... Nxe5 {[%clk 0:01:45.6]} 42. Kxe5 {[%clk 0:00:05]} 42...
h5 {[%clk 0:01:46.2]} 43. g5 {[%clk 0:00:01.4]} 43... Kf7 {[%clk 0:01:46.3]} 44.
Kf4 {[%clk 0:00:01.3]} 44... Ke6 {[%clk 0:01:46.9]} 45. Ke4 {[%clk 0:00:01.9]}
45... a6 {[%clk 0:01:47.2]} 46. a3 {[%clk 0:00:01.8]} 46... b5 {[%clk
0:01:45.8]} 47. cxb5 {[%clk 0:00:01.2]} 47... axb5 {[%clk 0:01:46.7]} 48. a4
{[%clk 0:00:01.9]} 48... bxa4 {[%clk 0:01:46.5]} 49. bxa4 {[%clk 0:00:02.8]}
49... Kd6 {[%clk 0:01:47.2]} 50. Kd3 {[%clk 0:00:01.8]} 50... h4 {[%clk
0:01:46.8]} 51. Kc4 {[%clk 0:00:01.6]} 51... h3 {[%clk 0:01:47]} 52. Kb5 {[%clk
0:00:02.3]} 52... h2 {[%clk 0:01:47.3]} 53. Kb6 {[%clk 0:00:03.2]} 53... h1=Q
{[%clk 0:01:47.9]} 54. a5 {[%clk 0:00:04.1]} 54... Qc6+ {[%clk 0:01:47.8]} 0-1

[Event "Early-Titled-Tuesday-Blitz-October-10-2023"]
[Site "Chess.com"]
[Date "2023.10.10"]
[Round "1"]
[White "Ural_bogatyr"]
[Black "Gyulamiryan-koryun"]
[Result "1-0"]
[WhiteElo "2534"]
[BlackElo "2016"]
[TimeControl "180+1"]
[EndTime "8:06:23 PDT"]
[Termination "Ural_bogatyr won on time"]

1. d4 {[%clk 0:03:00]} 1... Nf6 {[%clk 0:02:52.8]} 2. Nc3 {[%clk 0:02:59.6]}
2... g6 {[%clk 0:02:51.7]} 3. e4 {[%clk 0:02:59.1]} 3... d6 {[%clk 0:02:50.2]}
4. Nf3 {[%clk 0:02:58.2]} 4... Bg7 {[%clk 0:02:49.8]} 5. Be3 {[%clk 0:02:55.6]}
5... O-O {[%clk 0:02:49.1]} 6. Qd2 {[%clk 0:02:54.3]} 6... Re8 {[%clk 0:02:43]}
7. h4 {[%clk 0:02:48.7]} 7... Ng4 {[%clk 0:02:41.5]} 8. Bg5 {[%clk 0:02:46.9]}
8... h6 {[%clk 0:02:36.1]} 9. Bf4 {[%clk 0:02:45.9]} 9... e5 {[%clk 0:02:31.1]}
10. Bg3 {[%clk 0:02:39]} 10... Nc6 {[%clk 0:02:24.5]} 11. dxe5 {[%clk
0:02:33.7]} 11... dxe5 {[%clk 0:02:22.1]} 12. Nd5 {[%clk 0:02:23.7]} 12... Ne7
{[%clk 0:02:14.9]} 13. O-O-O {[%clk 0:02:17]} 13... Nxd5 {[%clk 0:02:11.7]} 14.
exd5 {[%clk 0:02:13.3]} 14... Bf5 {[%clk 0:02:10.2]} 15. h5 {[%clk 0:02:06.1]}
15... g5 {[%clk 0:02:05.6]} 16. Bb5 {[%clk 0:02:02.1]} 16... Re7 {[%clk
0:01:51.1]} 17. Rhe1 {[%clk 0:01:59.7]} 17... a6 {[%clk 0:01:41.4]} 18. Ba4
{[%clk 0:01:56.6]} 18... Rc8 {[%clk 0:01:32.8]} 19. c3 {[%clk 0:01:48.4]} 19...
b5 {[%clk 0:01:18.6]} 20. Bc2 {[%clk 0:01:47.6]} 20... Bxc2 {[%clk 0:01:15.7]}
21. Qxc2 {[%clk 0:01:45.1]} 21... Qd6 {[%clk 0:01:05.1]} 22. Qf5 {[%clk
0:01:39.5]} 22... Qd7 {[%clk 0:01:02.5]} 23. Qxd7 {[%clk 0:01:24.8]} 23... Rxd7
{[%clk 0:01:01]} 24. Nxe5 {[%clk 0:01:25.4]} 24... Bxe5 {[%clk 0:00:57.3]} 25.
Bxe5 {[%clk 0:01:26.2]} 25... Nxf2 {[%clk 0:00:56.6]} 26. Rd4 {[%clk 0:01:15.6]}
26... c5 {[%clk 0:00:34.3]} 27. Rd2 {[%clk 0:01:14.2]} 27... Ng4 {[%clk
0:00:31.1]} 28. Bg3 {[%clk 0:01:12.5]} 28... Rcd8 {[%clk 0:00:21.5]} 29. d6
{[%clk 0:01:09.2]} 29... f5 {[%clk 0:00:07.4]} 30. Re6 {[%clk 0:01:08.6]} 30...
f4 {[%clk 0:00:02.2]} 31. Be1 {[%clk 0:01:07.6]} 1-0

[Event "Early-Titled-Tuesday-Blitz-October-10-2023"]
[Site "Chess.com"]
[Date "2023.10.10"]
[Round "1"]
[White "Rikikits"]
[Black "Juicy_Fork"]
[Result "1-0"]
[WhiteElo "2825"]
[BlackElo "2459"]
[TimeControl "180+1"]
[EndTime "8:06:25 PDT"]
[Termination "Rikikits won on time"]

1. d4 {[%clk 0:03:00.9]} 1... Nf6 {[%clk 0:02:58.7]} 2. c4 {[%clk 0:03:00.7]}
2... g6 {[%clk 0:02:58.9]} 3. f3 {[%clk 0:02:59.6]} 3... Bg7 {[%clk 0:02:58.8]}
4. e4 {[%clk 0:02:59.9]} 4... d6 {[%clk 0:02:59.3]} 5. Be3 {[%clk 0:02:59.9]}
5... O-O {[%clk 0:02:59.9]} 6. Ne2 {[%clk 0:03:00.2]} 6... c5 {[%clk 0:02:59]}
7. d5 {[%clk 0:02:57.8]} 7... b5 {[%clk 0:02:54.8]} 8. cxb5 {[%clk 0:02:55.7]}
8... a6 {[%clk 0:02:55.2]} 9. Nec3 {[%clk 0:02:54.1]} 9... axb5 {[%clk
0:02:50.8]} 10. Bxb5 {[%clk 0:02:55]} 10... Ba6 {[%clk 0:02:47.3]} 11. O-O
{[%clk 0:02:51.4]} 11... Bxb5 {[%clk 0:02:41.6]} 12. Nxb5 {[%clk 0:02:52.3]}
12... Qb6 {[%clk 0:02:42]} 13. N1c3 {[%clk 0:02:52.1]} 13... Na6 {[%clk
0:02:38.8]} 14. a4 {[%clk 0:02:51]} 14... Nc7 {[%clk 0:02:36.6]} 15. b4 {[%clk
0:02:44.5]} 15... Nxb5 {[%clk 0:02:31.5]} 16. Nxb5 {[%clk 0:02:42.6]} 16... Nd7
{[%clk 0:02:24.7]} 17. Rb1 {[%clk 0:02:39.5]} 17... Rfb8 {[%clk 0:02:14.3]} 18.
h4 {[%clk 0:02:35.4]} 18... h5 {[%clk 0:02:05.9]} 19. Qc2 {[%clk 0:02:33.3]}
19... Bd4 {[%clk 0:01:39.8]} 20. Nxd4 {[%clk 0:02:24.4]} 20... cxd4 {[%clk
0:01:40.1]} 21. Bf2 {[%clk 0:02:25]} 21... Qa6 {[%clk 0:01:35.9]} 22. a5 {[%clk
0:02:12.6]} 22... d3 {[%clk 0:01:33.8]} 23. Qd2 {[%clk 0:02:11.3]} 23... Ne5
{[%clk 0:01:32.3]} 24. Rfc1 {[%clk 0:02:09.7]} 24... Qb5 {[%clk 0:01:20]} 25.
Bd4 {[%clk 0:02:08.8]} 25... Rc8 {[%clk 0:01:08.3]} 26. Kh2 {[%clk 0:02:00.1]}
26... Rxc1 {[%clk 0:00:52.2]} 27. Rxc1 {[%clk 0:01:59.4]} 27... Rb8 {[%clk
0:00:52.5]} 28. Rc3 {[%clk 0:01:37.9]} 28... Qxb4 {[%clk 0:00:41.2]} 29. Bxe5
{[%clk 0:01:37.8]} 29... dxe5 {[%clk 0:00:40.8]} 30. Rxd3 {[%clk 0:01:38.5]}
30... Qxd2 {[%clk 0:00:23.9]} 31. Rxd2 {[%clk 0:01:39.4]} 31... Ra8 {[%clk
0:00:24.6]} 32. Ra2 {[%clk 0:01:38]} 32... Ra6 {[%clk 0:00:25.2]} 33. g3 {[%clk
0:01:35.7]} 33... Kf8 {[%clk 0:00:25.4]} 34. f4 {[%clk 0:01:35.6]} 34... exf4
{[%clk 0:00:17.6]} 35. gxf4 {[%clk 0:01:36.5]} 35... Ke8 {[%clk 0:00:18.3]} 36.
e5 {[%clk 0:01:34.6]} 36... Kd7 {[%clk 0:00:17.8]} 37. Kg3 {[%clk 0:01:35.1]}
37... f6 {[%clk 0:00:11.1]} 38. Kf3 {[%clk 0:01:35.2]} 38... fxe5 {[%clk
0:00:11.1]} 39. fxe5 {[%clk 0:01:36.1]} 39... e6 {[%clk 0:00:11.7]} 40. d6
{[%clk 0:01:36.1]} 40... Kc6 {[%clk 0:00:11.3]} 41. Kf4 {[%clk 0:01:36.2]} 41...
Ra8 {[%clk 0:00:05.7]} 42. a6 {[%clk 0:01:36]} 42... Kd5 {[%clk 0:00:04.9]} 43.
a7 {[%clk 0:01:35.5]} 43... Rf8+ {[%clk 0:00:04.6]} 44. Kg5 {[%clk 0:01:35.7]}
44... Ra8 {[%clk 0:00:04.9]} 45. Kxg6 {[%clk 0:01:34.8]} 45... Kc6 {[%clk
0:00:02.2]} 46. Kxh5 {[%clk 0:01:34.5]} 46... Kd7 {[%clk 0:00:02.6]} 47. Kg5
{[%clk 0:01:34.6]} 1-0